bitfinex/quotes_ETHUSD_20250520
["timestamp","ask_amount","ask_price","bid_price","bid_amount"]
[1747742925375,4.81724828,2503.6,2503.5,25.84305134]
[1747742925568,4.81724828,2503.6,2503.5,34.16905134]
[1747742925900,4.81724828,2503.6,2503.5,33.94708141]
[1747742926899,4.81724828,2503.6,2503.5,33.568]
[1747742929177,3.99424828,2503.6,2503.5,33.568]
[1747742929384,3.99424828,2503.6,2503.5,25.568]
[1747742929714,4.79308928,2503.6,2503.5,25.568]
[1747742930079,0.8161,2503.5,2503.4,17.243]
[1747742930315,4.81050782,2503.5,2503.4,25.569]
[1747742931887,0.8161,2503.5,2503.4,25.569]
[1747742932239,3.99426222,2503.6,2503.4,25.569]
[1747742932382,3.99440782,2503.5,2503.4,33.569]
[1747742933679,3.99440782,2503.5,2503.4,33.348]
[1747742935336,3.99440782,2503.5,2503.4,25.243]
[1747742935521,3.99440782,2503.5,2503.4,33.348]
[1747742935727,3.99440782,2503.5,2503.4,17.243]
[1747742935728,5.66286482,2503.5,2503.4,17.243]
[1747742935914,5.66286482,2503.5,2503.4,25.348]
[1747742937313,4.78500782,2503.5,2503.4,25.348]
[1747742938730,3.99440782,2503.5,2503.4,25.348]
[1747742942625,3.99440782,2503.5,2503.4,33.898]
[1747742942926,3.99440782,2503.5,2503.4,34.92132712]
[1747742944214,3.99440782,2503.5,2503.4,35.30079271]
[1747742946633,3.99440782,2503.5,2503.4,25.84479271]
[1747742946837,3.99440782,2503.5,2503.4,39.93679271]
[1747742947191,3.99440782,2503.5,2503.4,39.55732712]
[1747742947729,3.99440782,2503.5,2503.4,39.335]
[1747742951034,3.99440782,2503.5,2503.4,39.55777313]
[1747742951941,3.99440782,2503.5,2503.4,33.57077313]
[1747742956336,3.99440782,2503.5,2503.4,39.55777313]
[1747742958427,4.77240782,2503.5,2503.4,25.46577313]
[1747742958630,5.64907482,2503.5,2503.4,33.57077313]
[1747742959030,4.77240782,2503.5,2503.4,33.348]
[1747742960442,4.77240782,2503.5,2503.4,33.57094477]
[1747742960628,3.99440782,2503.5,2503.4,33.57094477]
[1747742962204,3.99440782,2503.5,2503.4,33.95143479]
[1747742962611,3.99440782,2503.5,2503.4,34.50143479]
[1747742963907,3.99440782,2503.5,2503.4,35.29353479]
[1747742968661,4.74780782,2503.5,2503.4,33.80943479]
[1747742969608,4.74780782,2503.5,2503.4,33.42894477]
[1747742970653,3.99440782,2503.5,2503.4,33.42894477]
[1747742974457,3.99440782,2503.5,2503.4,33.80913401]
[1747742976347,3.99440782,2503.5,2503.4,25.84613401]
[1747742976549,3.99440782,2503.5,2503.4,39.79613401]
[1747742976751,5.62587641,2503.5,2503.4,17.84613401]
[1747742976941,5.62587641,2503.5,2503.4,25.80913401]
[1747742977247,5.62587641,2503.5,2503.4,25.58618924]
[1747742978027,5.62587641,2503.5,2503.4,25.206]
[1747742985384,5.62587641,2503.5,2503.4,17.243]
[1747742985536,5.62587641,2503.5,2503.4,25.206]
[1747742997447,4.79327641,2503.5,2503.4,25.206]
[1747742997784,3.99440782,2503.5,2503.4,25.206]
[1747742999451,3.99440782,2503.5,2503.4,25.097]
[1747743005157,3.99440782,2503.5,2503.4,25.096]
[1747743005674,3.99440782,2503.5,2503.4,17.243]
[1747743005990,3.99440782,2503.5,2503.4,25.096]
[1747743006586,3.99440782,2503.5,2503.4,17.243]
[1747743006783,3.99440782,2503.5,2503.4,25.096]
[1747743007394,4.79327641,2503.5,2503.4,25.096]
[1747743008057,3.99440782,2503.5,2503.4,25.096]
[1747743008990,4.81400782,2503.5,2503.4,17.243]
[1747743009151,4.81400782,2503.5,2503.4,25.096]
[1747743012763,12.81400782,2503.5,2503.4,25.096]
[1747743013470,3.99440782,2503.5,2503.4,25.096]
[1747743014498,3.99440782,2503.5,2503.4,25.8697]
[1747743017797,3.99440782,2503.5,2503.4,25.096]
[1747743019795,5.23962443,2503.5,2503.4,17.243]
[1747743020100,5.23962443,2503.5,2503.4,25.097]
[1747743021171,5.23962443,2503.5,2503.4,17.243]
[1747743021359,5.23962443,2503.5,2503.4,25.097]
[1747743023202,4.41262443,2503.5,2503.4,25.097]
[1747743023359,3.99440782,2503.5,2503.4,25.097]
[1747743025103,3.9937605,2504.0,2503.4,25.097]
[1747743025104,6.55653234,2505.0,2503.7,3.19527099]
[1747743025314,5.35327925,2504.9,2504.4,0.7832]
[1747743025522,3.99249411,2504.7,2504.6,8.8273]
[1747743025731,3.99249411,2504.7,2504.6,22.6653]
[1747743025997,3.99249411,2504.7,2504.6,0.8273]
[1747743026161,3.99249411,2504.7,2504.6,8.6753]
[1747743028106,3.99265351,2504.6,2504.5,17.247]
[1747743028604,3.99257372,2504.7,2504.5,25.095]
[1747743029484,3.99265351,2504.6,2504.5,25.095]
[1747743030884,0.1,2504.9,2504.6,0.55]
[1747743030885,4.09224532,2504.9,2504.6,0.55]
[1747743031085,0.1,2504.9,2504.8,3.74386777]
[1747743031289,3.99077465,2505.8,2505.5,0.55]
[1747743031290,3.99081639,2505.8,2505.5,0.55]
[1747743031475,3.99081639,2505.8,2505.6,25.088]
[1747743032003,3.99090074,2505.7,2505.6,25.638]
[1747743034807,4.0905938,2505.9,2505.7,0.55]
[1747743035007,3.99074147,2505.8,2505.7,0.55]
[1747743035607,3.99074147,2505.8,2505.7,1.3465]
[1747743036113,3.99074147,2505.8,2505.7,14.6245]
[1747743038416,3.99074147,2505.8,2505.7,15.1745]
[1747743038600,4.09067479,2505.9,2505.8,8.0]
[1747743043544,0.1,2505.9,2505.8,8.55]
[1747743043695,4.09058222,2505.9,2505.8,8.55]
[1747743043899,0.1,2505.9,2505.8,22.39014418]
[1747743044201,0.1,2505.9,2505.8,17.94459318]
[1747743044602,0.1,2505.9,2505.8,18.14667339]
[1747743046229,0.1,2505.9,2505.8,17.84841839]
[1747743046409,0.1,2505.9,2505.8,16.73839839]
[1747743047530,0.1,2505.9,2505.8,13.54580521]
[1747743048135,0.1,2505.9,2505.8,16.73839839]
[1747743048642,0.1,2505.9,2505.8,1.52398021]
[1747743048807,0.1,2505.9,2505.8,23.1439]
[1747743049294,0.1,2505.9,2505.8,25.6735]
[1747743049495,4.09058222,2505.9,2505.8,22.5939]
[1747743049692,4.09058222,2505.9,2505.8,23.1439]
[1747743049895,0.1,2505.9,2505.8,25.6735]
[1747743050120,4.09058222,2505.9,2505.8,23.1439]
[1747743050327,0.1,2505.9,2505.8,23.1439]
[1747743050638,4.09058222,2505.9,2505.8,8.6119]
[1747743050847,4.09058222,2505.9,2505.8,9.1619]
[1747743052045,4.09058222,2505.9,2505.8,7.84]
[1747743052535,4.09058222,2505.9,2505.8,8.39]
[1747743052737,4.09058222,2505.9,2505.8,7.84]
[1747743057309,4.81730074,2505.7,2505.6,17.241]
[1747743057510,6.10716665,2505.7,2505.6,25.077]
[1747743057824,4.79525661,2505.1,2505.0,0.47496026]
[1747743058228,4.79525661,2505.1,2504.7,17.226]
[1747743058229,4.75013471,2504.8,2504.7,17.226]
[1747743060856,3.99233471,2504.8,2504.7,18.5467]
[1747743062507,3.99233471,2504.8,2504.7,25.064]
[1747743066563,3.99233471,2504.8,2504.7,17.226]
[1747743066762,4.77603471,2504.8,2504.7,17.226]
[1747743067762,4.74795351,2504.6,2504.5,7.839]
[1747743069926,3.99376971,2503.9,2503.8,17.233]
[1747743070126,3.99376971,2503.9,2503.8,25.073]
[1747743072666,3.99376971,2503.9,2503.8,25.623]
[1747743072830,3.99376971,2503.9,2503.8,33.623]
[1747743073641,3.99376971,2503.9,2503.8,25.073]
[1747743074171,3.99376971,2503.9,2503.8,25.074]
[1747743080176,3.99376971,2503.9,2503.8,25.8242]
[1747743081707,3.99321599,2504.3,2503.9,0.55]
[1747743081859,3.993209,2504.3,2504.1,0.55]
[1747743082174,3.99315971,2504.3,2504.1,0.55]
[1747743082910,3.99290141,2504.5,2504.4,0.8018]
[1747743083052,3.99185661,2505.1,2504.4,8.6438]
[1747743083373,3.9927413,2504.6,2504.4,9.1938]
[1747743083686,3.99281293,2504.5,2504.4,7.842]
[1747743090709,3.99281293,2504.5,2504.4,8.06474333]
[1747743091185,3.99281293,2504.5,2504.4,8.61474333]
[1747743092201,3.99281293,2504.5,2504.4,8.99484931]
[1747743092395,3.99281293,2504.5,2504.4,16.99484931]
[1747743093708,3.99281293,2504.5,2504.4,16.98448811]
[1747743096110,3.99266414,2504.6,2504.5,0.55]
[1747743097678,3.99256703,2504.7,2504.5,8.55]
[1747743098058,3.99265351,2504.6,2504.5,14.535]
[1747743098180,3.99265351,2504.6,2504.5,15.3566]
[1747743098582,3.99265351,2504.6,2504.5,15.73662348]
[1747743098778,3.99230684,2504.9,2504.5,15.73662348]
[1747743098975,3.9923519,2504.8,2504.5,15.73662348]
[1747743099187,0.8282,2505.4,2504.5,1.75162348]
[1747743099495,3.99251795,2504.7,2504.6,21.822]
[1747743100123,3.99235551,2504.8,2504.7,8.55]
[1747743100278,3.99235551,2504.8,2504.7,25.787]
[1747743101316,3.99220767,2504.9,2504.7,25.787]
[1747743101503,3.99213034,2505.0,2504.8,0.7666]
[1747743101815,3.99192662,2505.1,2504.9,0.55]
[1747743102020,3.99122432,2505.5,2504.9,0.55]
[1747743102321,3.99187885,2505.1,2504.9,0.55]
[1747743103322,3.99177774,2505.2,2504.9,0.55]
[1747743103518,0.1,2505.9,2505.4,0.55]
[1747743103825,4.09063023,2505.9,2505.6,1.3405]
[1747743104022,0.1,2505.9,2505.8,8.0]
[1747743104314,0.1,2505.9,2505.8,8.55]
[1747743104617,4.09058222,2505.9,2505.8,8.55]
[1747743105694,0.1,2505.9,2505.8,8.55]
[1747743105899,4.09058222,2505.9,2505.8,8.55]
[1747743106922,4.09058222,2505.9,2505.8,8.0]
[1747743107097,4.09058222,2505.9,2505.8,7.836]
[1747743110541,4.09058222,2505.9,2505.8,8.386]
[1747743114124,4.09058222,2505.9,2505.8,7.836]
[1747743116532,3.99074147,2505.8,2505.7,25.786]
[1747743116692,3.99074147,2505.8,2505.7,33.613]
[1747743118139,3.99074147,2505.8,2505.7,34.4411]
[1747743118351,4.09065072,2505.9,2505.7,34.4411]
[1747743118525,0.1,2505.9,2505.8,8.0]
[1747743119035,0.1,2505.9,2505.8,9.3794]
[1747743120728,4.09058222,2505.9,2505.8,9.3794]
[1747743121455,4.09058222,2505.9,2505.8,22.358]
[1747743121618,4.09058222,2505.9,2505.8,7.827]
[1747743124519,3.99074147,2505.8,2505.7,25.236]
[1747743124752,3.99074147,2505.8,2505.7,33.062]
[1747743124958,3.99074147,2505.8,2505.7,25.062]
[1747743125650,6.03036132,2505.8,2505.7,25.062]
[1747743128063,6.03036132,2505.8,2505.7,17.236]
[1747743128357,6.03036132,2505.8,2505.7,25.062]
[1747743128559,6.03036132,2505.8,2505.7,25.063]
[1747743128858,14.03036132,2505.8,2505.7,25.063]
[1747743129622,11.99137862,2505.4,2505.3,7.827]
[1747743129882,4.77827533,2504.9,2504.8,17.228]
[1747743130178,4.77827533,2504.9,2504.8,25.055]
[1747743134561,4.77721738,2504.9,2504.8,25.055]
[1747743135829,3.99111738,2504.9,2504.8,25.055]
[1747743140060,3.99111738,2504.9,2504.8,25.858]
[1747743141063,3.99111738,2504.9,2504.8,33.858]
[1747743141451,3.99111738,2504.9,2504.8,34.408]
[1747743144445,3.99111738,2504.9,2504.8,40.394]
[1747743144653,3.99111738,2504.9,2504.8,25.228]
[1747743144854,3.99111738,2504.9,2504.8,33.057]
[1747743146248,3.99111738,2504.9,2504.8,25.057]
[1747743151575,3.99111738,2504.9,2504.8,25.049]
[1747743151774,4.86723395,2504.9,2504.8,25.049]
[1747743156679,5.67933395,2504.9,2504.8,25.049]
[1747743158690,5.67933395,2504.9,2504.8,25.05]
[1747743160891,4.80321738,2504.9,2504.8,25.05]
[1747743161102,3.99111738,2504.9,2504.8,25.05]
[1747743164471,3.99111738,2504.9,2504.8,17.228]
[1747743164672,3.99111738,2504.9,2504.8,25.05]
[1747743165002,4.80011738,2504.9,2504.8,25.05]
[1747743165202,5.67933395,2504.9,2504.8,25.05]
[1747743166283,3.99111738,2504.9,2504.8,25.05]
[1747743167406,3.99340106,2504.2,2504.0,8.3101]
[1747743167601,3.99340106,2504.2,2504.1,7.822]
[1747743167928,0.8106,2505.1,2504.1,7.822]
[1747743167929,3.99306275,2504.4,2504.2,0.55]
[1747743168404,3.99274676,2504.6,2504.4,0.55]
[1747743168772,3.99281293,2504.5,2504.2,0.55]
[1747743169369,3.99281293,2504.5,2504.4,0.55]
[1747743169797,3.99281293,2504.5,2504.4,0.9319581]
[1747743170198,3.99281293,2504.5,2504.4,1.1550535]
[1747743170512,3.99281293,2504.5,2504.4,1.9112535]
[1747743176205,0.798,2505.5,2504.4,1.9112535]
[1747743176509,3.99216379,2505.0,2504.9,0.55]
[1747743176704,3.99216379,2505.0,2504.9,8.5840954]
[1747743177275,3.99216379,2505.0,2504.9,25.8190954]
[1747743178414,3.99216379,2505.0,2504.9,25.2690954]
[1747743178713,3.99216379,2505.0,2504.9,25.6510535]
[1747743179908,3.99216379,2505.0,2504.9,17.8400535]
[1747743180073,3.99216379,2505.0,2504.9,25.6500535]
[1747743180474,3.99216379,2505.0,2504.9,25.2680954]
[1747743181121,3.99216379,2505.0,2504.9,26.0514954]
[1747743182102,3.99216379,2505.0,2504.9,26.6014954]
[1747743184217,3.99216379,2505.0,2504.9,25.2680954]
[1747743184508,3.99216379,2505.0,2504.9,25.64976281]
[1747743185518,4.78366379,2505.0,2504.9,25.64976281]
[1747743185712,5.66121962,2505.0,2504.9,25.64976281]
[1747743186014,5.66121962,2505.0,2504.9,25.42666741]
[1747743186212,5.66121962,2505.0,2504.9,25.045]
[1747743190239,4.86971962,2505.0,2504.9,25.045]
[1747743190532,3.99216379,2505.0,2504.9,25.045]
[1747743191635,3.99189455,2505.1,2504.9,25.045]
[1747743191842,3.99189455,2505.1,2505.0,1.58067912]
[1747743192040,3.99179045,2505.2,2505.1,0.55]
[1747743192416,3.99179045,2505.2,2505.1,0.77377912]
[1747743193658,0.8534,2505.9,2505.3,0.55]
[1747743193807,0.8534,2505.9,2505.5,0.55]
[1747743193808,3.99106002,2505.6,2505.5,0.55]
[1747743194622,3.99106002,2505.6,2505.5,0.77377912]
[1747743196116,3.99106002,2505.6,2505.5,0.55]
[1747743197947,3.99106002,2505.6,2505.5,8.55]
[1747743198234,3.99106002,2505.6,2505.5,9.3666]
[1747743198436,3.99106002,2505.6,2505.5,9.59007522]
[1747743198962,3.99106002,2505.6,2505.5,9.97143705]
[1747743199654,3.99106002,2505.6,2505.5,27.20343705]
[1747743202533,3.99106002,2505.6,2505.5,26.82207522]
[1747743202856,3.99106002,2505.6,2505.5,26.5986]
[1747743203032,3.99106002,2505.6,2505.5,25.782]
[1747743206164,3.99106002,2505.6,2505.5,25.232]
[1747743206350,3.99106002,2505.6,2505.5,39.022]
[1747743208439,3.99106002,2505.6,2505.5,33.04]
[1747743212041,3.99106002,2505.6,2505.5,33.028]
[1747743212355,3.99106002,2505.6,2505.5,33.2512326]
[1747743212552,4.78925943,2505.6,2505.5,17.4552326]
[1747743212775,5.61785943,2505.6,2505.5,17.4552326]
[1747743212973,4.78925943,2505.6,2505.5,25.028]
[1747743213199,5.61785943,2505.6,2505.5,25.028]
[1747743218795,13.61785943,2505.6,2505.5,25.028]
[1747743219288,15.19470404,2505.6,2505.5,25.028]
[1747743220390,13.61785943,2505.6,2505.5,25.028]
[1747743222667,15.19470404,2505.6,2505.5,25.028]
[1747743225318,13.61785943,2505.6,2505.5,25.028]
[1747743229605,13.61785943,2505.6,2505.5,7.796]
[1747743234609,3.99185661,2505.1,2505.0,0.7953]
[1747743234777,3.99185661,2505.1,2505.0,8.5933]
[1747743238040,3.99153793,2505.3,2505.2,1.3315]
[1747743238540,0.1,2505.9,2505.7,0.55]
[1747743238822,3.9903853,2506.1,2506.0,1.3063]
[1747743238989,3.9903853,2506.1,2506.0,18.5403]
[1747743239189,3.9903853,2506.1,2506.0,18.92154278]
[1747743239389,3.99013451,2506.2,2506.0,19.14485978]
[1747743239390,3.99023627,2506.2,2506.0,19.14485978]
[1747743239585,3.98930368,2506.8,2506.1,0.55]
[1747743239790,3.98985742,2506.4,2506.1,8.55]
[1747743240102,3.99001784,2506.3,2506.2,1.567517]
[1747743240299,3.98964793,2506.5,2506.4,0.55]
[1747743240922,3.98964793,2506.5,2506.4,0.773317]
[1747743241105,3.98930865,2506.7,2506.6,0.55]
[1747743241304,3.98930865,2506.7,2506.6,0.7642617]
[1747743241621,3.98930865,2506.7,2506.6,0.9875787]
[1747743242423,3.98930865,2506.7,2506.6,0.7642617]
[1747743244009,3.9894678,2506.6,2506.5,9.22196127]
[1747743244210,3.9894678,2506.6,2506.5,9.00396127]
[1747743245421,3.99026375,2506.1,2506.0,18.0267]
[1747743245623,3.99026375,2506.1,2506.0,25.8077]
[1747743245940,3.99026375,2506.1,2506.0,26.3577]
[1747743246234,3.99026375,2506.1,2506.0,33.8077]
[1747743248438,3.99026375,2506.1,2506.0,34.3577]
[1747743248892,3.99026375,2506.1,2506.0,34.76336285]
[1747743250328,3.99026375,2506.1,2506.0,25.015]
[1747743265425,3.99026375,2506.1,2506.0,30.996]
[1747743266862,12.82066375,2506.1,2506.0,25.015]
[1747743267828,12.82066375,2506.1,2506.0,17.234]
[1747743268030,15.67042678,2506.1,2506.0,25.015]
[1747743271138,17.24727139,2506.1,2506.0,25.015]
[1747743272172,21.44627139,2506.1,2506.0,25.015]
[1747743272341,17.24727139,2506.1,2506.0,25.015]
[1747743273973,15.67042678,2506.1,2506.0,25.015]
[1747743280373,17.24727139,2506.1,2506.0,25.015]
[1747743281100,17.24727139,2506.1,2506.0,17.234]
[1747743282288,12.77842298,2506.0,2505.9,7.769]
[1747743282462,16.68078586,2506.0,2505.9,7.769]
[1747743283570,17.08832974,2506.0,2505.9,7.769]
[1747743286507,27.19832974,2506.0,2505.9,7.769]
[1747743286689,26.79078586,2506.0,2505.9,7.769]
[1747743288103,3.99042298,2506.0,2505.9,7.769]
[1747743290105,3.99042298,2506.0,2505.9,8.5648]
[1747743294217,3.99042298,2506.0,2505.9,0.7958]
[1747743294510,3.99042298,2506.0,2505.9,8.5648]
[1747743302904,3.99042298,2506.0,2505.9,8.7880359]
[1747743303442,3.99042298,2506.0,2505.9,9.3380359]
[1747743304398,3.99042298,2506.0,2505.9,17.3380359]
[1747743305550,3.99042298,2506.0,2505.9,23.69981973]
[1747743305918,3.99042298,2506.0,2505.9,17.15381973]
[1747743306113,3.99042298,2506.0,2505.9,17.15366844]
[1747743306649,3.99042298,2506.0,2505.9,9.15366844]
[1747743307016,3.99042298,2506.0,2505.9,8.93058383]
[1747743307350,3.99042298,2506.0,2505.9,8.5498]
[1747743311569,3.99042298,2506.0,2505.9,8.94820526]
[1747743311746,3.32075818,2506.0,2505.9,8.94820526]
[1747743312254,3.32075818,2506.0,2505.9,9.17130421]
[1747743314278,3.32075818,2506.0,2505.9,9.55223156]
[1747743315175,3.32075818,2506.0,2505.9,15.53323156]
[1747743315882,3.32075818,2506.0,2505.9,1.79823156]
[1747743316170,3.32075818,2506.0,2505.9,8.3580263]
[1747743316326,3.32075818,2506.0,2505.9,8.13492735]
[1747743316929,3.32075818,2506.0,2505.9,7.754]
[1747743317665,3.32075818,2506.0,2505.9,7.97781837]
[1747743319772,3.32075818,2506.0,2505.9,25.20381837]
[1747743319973,3.32075818,2506.0,2505.9,25.58592448]
[1747743326178,12.07165818,2506.0,2505.9,17.83192448]
[1747743326368,12.07165818,2506.0,2505.9,25.58592448]
[1747743326564,12.07165818,2506.0,2505.9,25.20381837]
[1747743326745,11.32075818,2506.0,2505.9,25.20381837]
[1747743326947,11.32075818,2506.0,2505.9,24.98]
[1747743328775,3.32075818,2506.0,2505.9,24.98]
[1747743329185,3.32075818,2506.0,2505.9,25.20389331]
[1747743330283,3.32075818,2506.0,2505.9,25.99719331]
[1747743330445,3.32075818,2506.0,2505.9,26.37932061]
[1747743330887,3.99027576,2506.1,2506.0,1.3015]
[1747743331182,3.99027576,2506.1,2506.0,1.52539331]
[1747743331544,3.99027576,2506.1,2506.0,1.90752061]
[1747743331745,3.99019666,2506.2,2506.1,1.3627]
[1747743331998,3.98990218,2506.4,2506.2,0.55]
[1747743332300,0.1,2506.9,2506.6,0.55]
[1747743332481,4.08900938,2506.9,2506.8,1.3627]
[1747743333141,4.08900938,2506.9,2506.8,1.58659331]
[1747743333343,4.08900938,2506.9,2506.8,1.96872061]
[1747743335785,4.08900938,2506.9,2506.8,9.96872061]
[1747743338547,0.1,2506.9,2506.8,9.96872061]
[1747743338747,4.08899038,2506.9,2506.8,9.58659331]
[1747743339707,0.1,2506.9,2506.8,9.58659331]
[1747743339988,0.1,2507.9,2507.4,0.7997]
[1747743340150,0.1,2507.9,2507.6,8.55]
[1747743340353,3.98771782,2507.7,2507.6,8.0]
[1747743340547,3.98771782,2507.7,2507.6,15.738]
[1747743340754,3.98771782,2507.7,2507.6,7.738]
[1747743342049,0.1,2507.9,2507.7,0.55]
[1747743342350,0.1,2507.9,2507.8,0.8012]
[1747743342988,0.1,2507.9,2507.8,1.3512]
[1747743343289,0.1,2507.9,2507.8,15.41376393]
[1747743343587,0.1,2507.9,2507.8,16.0947]
[1747743343882,0.1,2507.9,2507.8,19.90552432]
[1747743347189,0.1,2508.9,2508.6,3.58753489]
[1747743347376,0.1,2508.9,2508.8,8.55]
[1747743347686,0.1,2508.9,2508.8,19.87137244]
[1747743347895,0.1,2508.9,2508.8,30.41131844]
[1747743348396,0.1,2508.9,2508.8,26.56469644]
[1747743348694,0.1,2508.9,2508.8,23.29447882]
[1747743350196,4.08581051,2508.9,2508.8,23.47876638]
[1747743350567,0.1,2508.9,2508.8,22.65256638]
[1747743350974,0.1,2508.9,2508.8,22.65056638]
[1747743351392,0.1,2508.9,2508.8,16.67456638]
[1747743351596,0.1,2508.9,2508.8,22.65056638]
[1747743354892,4.08581051,2508.9,2508.8,22.65056638]
[1747743355202,4.08581051,2508.9,2508.8,8.94156638]
[1747743355364,4.08581051,2508.9,2508.8,8.12356638]
[1747743356286,4.08581051,2508.9,2508.8,8.12256638]
[1747743356464,3.98596938,2508.8,2508.7,17.216]
[1747743356800,3.98596938,2508.8,2508.7,38.922]
[1747743359083,3.98596938,2508.8,2508.7,32.947]
[1747743360601,3.98596938,2508.8,2508.7,33.33695117]
[1747743360898,3.98596938,2508.8,2508.7,17.60595117]
[1747743361074,5.54914737,2508.8,2508.7,17.216]
[1747743361279,5.54914737,2508.8,2508.7,24.935]
[1747743363585,5.54914737,2508.8,2508.7,17.216]
[1747743364104,5.54914737,2508.8,2508.7,24.936]
[1747743364702,4.74196938,2508.8,2508.7,24.936]
[1747743367707,3.98596938,2508.8,2508.7,24.936]
[1747743370108,4.81416938,2508.8,2508.7,24.936]
[1747743373620,3.98387751,2510.2,2508.8,1.3354]
[1747743373821,0.7626,2509.8,2508.9,0.55]
[1747743373977,3.98453998,2509.7,2508.9,0.55]
[1747743374183,3.9854928,2509.1,2509.0,0.22298306]
[1747743374724,3.9854928,2509.1,2509.0,7.94298306]
[1747743375213,3.9854928,2509.1,2509.0,7.72]
[1747743375414,3.98596938,2508.8,2508.7,17.216]
[1747743375620,3.98596938,2508.8,2508.7,24.936]
[1747743377417,3.98596938,2508.8,2508.7,25.6981]
[1747743377628,3.98571181,2509.0,2508.7,26.62880288]
[1747743377949,3.98410936,2510.0,2508.7,26.62880288]
[1747743377950,0.7602,2509.5,2508.8,8.55]
[1747743378248,3.98550573,2509.1,2509.0,0.55]
[1747743378784,3.98534066,2509.2,2509.0,0.77299932]
[1747743378984,3.98540962,2509.2,2509.0,0.77299932]
[1747743379423,3.98540962,2509.2,2508.8,8.0]
[1747743379424,3.98540962,2509.2,2508.9,0.55]
[1747743379617,3.98540962,2509.2,2508.7,29.66630722]
[1747743379618,3.98496929,2509.5,2509.1,0.93070288]
[1747743379849,3.98503804,2509.4,2509.3,8.0]
[1747743380206,3.98495915,2509.5,2509.3,8.22297429]
[1747743380434,3.98501633,2509.4,2509.3,8.22297429]
[1747743380603,3.9847271,2509.6,2509.3,8.22297429]
[1747743380938,3.98485754,2509.5,2509.3,8.22297429]
[1747743381299,3.984595,2509.7,2509.4,0.38070288]
[1747743381504,3.98469875,2509.6,2509.5,1.3025]
[1747743382125,3.98469875,2509.6,2509.5,1.52539547]
[1747743382320,3.98469875,2509.6,2509.5,1.90609835]
[1747743382520,3.98469875,2509.6,2509.5,2.60292834]
[1747743382736,3.98469875,2509.6,2509.5,9.90609835]
[1747743383307,3.98469875,2509.6,2509.5,10.30551557]
[1747743383528,3.98469875,2509.6,2509.5,10.0826201]
[1747743384339,3.9846127,2509.7,2509.5,10.0826201]
[1747743384648,3.98461018,2509.7,2509.5,10.0826201]
[1747743384944,3.98461018,2509.7,2509.6,0.55]
[1747743385904,3.98461018,2509.7,2509.6,0.93070288]
[1747743387843,3.98461018,2509.7,2509.6,0.55]
[1747743398579,3.98461018,2509.7,2509.6,25.751]
[1747743403624,3.98461018,2509.7,2509.6,25.97391577]
[1747743404927,3.98461018,2509.7,2509.6,26.35443935]
[1747743405256,4.79831018,2509.7,2509.6,17.80443935]
[1747743405837,4.79831018,2509.7,2509.6,17.58152358]
[1747743406563,4.79831018,2509.7,2509.6,17.201]
[1747743408425,4.79831018,2509.7,2509.6,24.908]
[1747743409469,3.98461018,2509.7,2509.6,17.201]
[1747743409768,3.98461018,2509.7,2509.6,24.908]
[1747743409971,3.98461018,2509.7,2509.6,25.13164193]
[1747743410975,3.98461018,2509.7,2509.6,25.51337973]
[1747743415042,0.1,2509.9,2509.6,33.51337973]
[1747743415247,0.1,2509.9,2509.7,13.24804047]
[1747743415554,4.08422247,2509.9,2509.8,12.72505393]
[1747743415754,4.08422247,2509.9,2509.8,8.77364193]
[1747743416582,4.08422247,2509.9,2509.8,9.63033999]
[1747743417466,4.08422247,2509.9,2509.8,10.42963999]
[1747743417670,4.08422247,2509.9,2509.8,19.13980899]
[1747743417873,4.08422247,2509.9,2509.8,24.10863999]
[1747743418407,0.1,2509.9,2509.8,33.47864599]
[1747743418619,0.1,2509.9,2509.8,27.90930199]
[1747743418812,4.08422247,2509.9,2509.8,16.10863999]
[1747743418974,4.08422247,2509.9,2509.8,15.30933999]
[1747743419174,4.08422247,2509.9,2509.8,9.63033999]
[1747743419486,4.08422247,2509.9,2509.8,23.30833999]
[1747743419688,4.08422247,2509.9,2509.8,23.30733999]
[1747743419911,4.08422247,2509.9,2509.8,22.83237973]
[1747743420505,4.08422247,2509.9,2509.8,22.28237973]
[1747743421390,4.08422247,2509.9,2509.8,22.27237973]
[1747743423109,4.08422247,2509.9,2509.8,14.27137973]
[1747743423511,4.08422247,2509.9,2509.8,0.60537973]
[1747743423717,4.08422247,2509.9,2509.8,8.30037973]
[1747743424881,4.08422247,2509.9,2509.8,7.91864193]
[1747743425531,4.08422247,2509.9,2509.8,0.22364193]
[1747743425532,4.9692993,2509.9,2509.8,0.22364193]
[1747743425821,5.7202993,2509.9,2509.8,7.91964193]
[1747743426019,5.7202993,2509.9,2509.6,17.201]
[1747743426020,3.98453998,2509.7,2509.6,17.201]
[1747743426220,4.78093998,2509.7,2509.6,24.897]
[1747743426425,6.15440549,2509.7,2509.6,24.897]
[1747743427131,4.78093998,2509.7,2509.6,24.897]
[1747743432287,3.98453998,2509.7,2509.6,24.897]
[1747743433818,4.79153998,2509.7,2509.6,17.201]
[1747743434133,4.79153998,2509.7,2509.6,24.897]
[1747743434832,6.16606549,2509.7,2509.6,24.898]
[1747743434994,6.16606549,2509.7,2509.6,17.201]
[1747743435199,7.73652689,2509.7,2509.6,24.898]
[1747743435399,6.16606549,2509.7,2509.6,24.898]
[1747743436947,3.98453998,2509.7,2509.6,24.898]
[1747743439233,4.74553998,2509.7,2509.6,24.898]
[1747743439602,3.98453998,2509.7,2509.6,24.898]
[1747743448518,3.98453998,2509.7,2509.6,25.6864]
[1747743449131,3.98453998,2509.7,2509.6,25.9096223]
[1747743450213,3.98453998,2509.7,2509.6,26.2905029]
[1747743454152,0.1,2509.9,2509.6,34.2905029]
[1747743454363,3.98438122,2509.8,2509.7,8.0]
[1747743454564,3.98453998,2509.7,2509.6,25.2788806]
[1747743455148,3.98453998,2509.7,2509.6,17.5818806]
[1747743455375,5.27218343,2509.7,2509.6,25.2688806]
[1747743455749,5.27218343,2509.7,2509.6,24.888]
[1747743456088,3.98453998,2509.7,2509.6,24.888]